Workbook

Sheet 总成绩
A1: 合肥新亚交通运输集团有限公司公开招聘17人面试成绩及总成绩
A2: 序号 | B2: 姓名 | C2: 性别 | D2: 岗位名称 | E2: 准考证号(笔试) | F2: 笔试成绩 | G2: 抽签号 | H2: 面试成绩 | I2: 总成绩 | J2: 备注
A3: 1 | B3: 吴真依 | C3: 女 | D3: 财务岗-231201 | E3: 202401200305 | F3: 71.7 | G3: 财务-01 | H3: 73.14 | I3: =F3*0.5+H3*0.5 -> 72.42
A4: 2 | B4: 朱凯燕 | C4: 女 | D4: 财务岗-231201 | E4: 202401200122 | F4: 74 | G4: 财务-02 | H4: 78.18 | I4: =F4*0.5+H4*0.5 -> 76.09
A5: 3 | B5: 卢杰 | C5: 女 | D5: 财务岗-231201 | E5: 202401200220 | F5: 75.1 | G5: 财务-03 | H5: 75.83 | I5: =F5*0.5+H5*0.5 -> 75.47
A6: 4 | B6: 张白雪 | C6: 女 | D6: 财务岗-231201 | E6: 202401200215 | F6: 73 | G6: 财务-04 | H6: 77.44 | I6: =F6*0.5+H6*0.5 -> 75.22
A7: 5 | B7: 邓妍 | C7: 女 | D7: 财务岗-231201 | E7: 202401200211 | F7: 76.9 | G7: 财务-05 | H7: 76.27 | I7: =F7*0.5+H7*0.5 -> 76.59
A8: 6 | B8: 叶迎霜 | C8: 女 | D8: 财务岗-231201 | E8: 202401200224 | F8: 73.8 | G8: 财务-06 | H8: 77.46 | I8: =F8*0.5+H8*0.5 -> 75.63
A9: 7 | B9: 王静 | C9: 女 | D9: 财务岗-231201 | E9: 202401200229 | F9: 71.2 | G9: 财务-07 | H9: 76.99 | I9: =F9*0.5+H9*0.5 -> 74.10
A10: 8 | B10: 刘碧玉 | C10: 女 | D10: 财务岗-231201 | E10: 202401200210 | F10: 77.9 | G10: 财务-08 | H10: 80.39 | I10: =F10*0.5+H10*0.5 -> 79.15
A11: 9 | B11: 郭子圆 | C11: 女 | D11: 财务岗-231201 | E11: 202401200228 | F11: 71.4 | G11: 财务-09 | H11: 77.01 | I11: =F11*0.5+H11*0.5 -> 74.21
A12: 10 | B12: 陈心悦 | C12: 女 | D12: 办公室行政人员-231203 | E12: 202401200119 | F12: 68.3 | G12: 办公室行政-01 | H12: 78.06 | I12: =F12*0.5+H12*0.5 -> 73.18
A13: 11 | B13: 许明媛 | C13: 女 | D13: 办公室行政人员-231203 | E13: 202401200116 | F13: 64 | G13: 办公室行政-02 | H13: 75.30 | I13: =F13*0.5+H13*0.5 -> 69.65
A14: 12 | B14: 吴玉 | C14: 女 | D14: 办公室行政人员-231203 | E14: 202401200108 | F14: 72.9 | G14: 办公室行政-03 | H14: 78.27 | I14: =F14*0.5+H14*0.5 -> 75.59
A15: 13 | B15: 陈璇 | C15: 女 | D15: 办公室行政人员-231203 | E15: 202401200109 | F15: 71.3 | G15: 办公室行政-04 | H15: 74.93 | I15: =F15*0.5+H15*0.5 -> 73.12
A16: 14 | B16: 何蓉 | C16: 女 | D16: 办公室行政人员-231203 | E16: 202401200118 | F16: 52.5 | G16: 办公室行政-05 | H16: 74.02 | I16: =F16*0.5+H16*0.5 -> 63.26
A17: 15 | B17: 丁镇钒 | C17: 男 | D17: 办公室行政人员-231203 | E17: 202401200107 | F17: 67.7 | G17: 办公室行政-06 | H17: 76.84 | I17: =F17*0.5+H17*0.5 -> 72.27
A18: 16 | B18: 谢璐 | C18: 女 | D18: 办公室行政人员-231203 | E18: 202401200115 | F18: 75.4 | G18: 办公室行政-07 | H18: 74.42 | I18: =F18*0.5+H18*0.5 -> 74.91
A19: 17 | B19: 吴晨阳 | C19: 女 | D19: 办公室行政人员-231203 | E19: 202401200114 | F19: 81.4 | G19: 办公室行政-08 | H19: 78.93 | I19: =F19*0.5+H19*0.5 -> 80.17
A20: 18 | B20: 方浩博 | C20: 男 | D20: 办公室行政人员-231203 | E20: 202401200111 | F20: 70.7 | G20: / | H20: / | I20: / | J20: 缺考
A21: 20 | B21: 曹雪 | C21: 女 | D21: 人力资源管理岗-231204 | E21: 202401200105 | F21: 57.7 | G21: 人力资源-01 | H21: 77.36 | I21: =F21*0.5+H21*0.5 -> 67.53
A22: 19 | B22: 王馨宇 | C22: 女 | D22: 人力资源管理岗-231204 | E22: 202401200103 | F22: 73.9 | G22: 人力资源-02 | H22: 77.06 | I22: =F22*0.5+H22*0.5 -> 75.48
A23: 21 | B23: 施静洁 | C23: 女 | D23: 综合管理岗-231206 | E23: 202401200719 | F23: 78.6 | G23: 综合管理-01 | H23: 72.93 | I23: =F23*0.5+H23*0.5 -> 75.77
A24: 22 | B24: 蒋金燕 | C24: 女 | D24: 综合管理岗-231206 | E24: 202401201408 | F24: 83.6 | G24: 综合管理-02 | H24: 76.83 | I24: 80.22
A25: 23 | B25: 王奇 | C25: 男 | D25: 综合管理岗-231206 | E25: 202401201810 | F25: 82.3 | G25: 综合管理-03 | H25: 78.12 | I25: 80.21
A26: 24 | B26: 徐磊 | C26: 男 | D26: 综合管理岗-231206 | E26: 202401201723 | F26: 80.1 | G26: 综合管理-04 | H26: 73.19 | I26: 76.65
A27: 25 | B27: 包先龙 | C27: 男 | D27: 综合管理岗-231206 | E27: 202401200429 | F27: 77.8 | G27: 综合管理-05 | H27: 73.19 | I27: 75.50
A28: 26 | B28: 吴春燕 | C28: 女 | D28: 综合管理岗-231206 | E28: 202401200509 | F28: 79.4 | G28: 综合管理-06 | H28: 72.69 | I28: 76.05
A29: 27 | B29: 王卓智 | C29: 女 | D29: 综合管理岗-231206 | E29: 202401201309 | F29: 85.8 | G29: 综合管理-07 | H29: 76.81 | I29: 81.31
A30: 28 | B30: 孙丽娟 | C30: 女 | D30: 综合管理岗-231206 | E30: 202401200829 | F30: 78.8 | G30: 综合管理-08 | H30: 73.46 | I30: 76.13
A31: 29 | B31: 王贵冬 | C31: 男 | D31: 综合管理岗-231206 | E31: 202401201809 | F31: 78.9 | G31: 综合管理-09 | H31: 71.33 | I31: 75.12
A32: 30 | B32: 王千千 | C32: 女 | D32: 综合管理岗-231206 | E32: 202401200510 | F32: 84.7 | G32: 综合管理-10 | H32: 73.22 | I32: 78.96
A33: 31 | B33: 王媛慧 | C33: 女 | D33: 综合管理岗-231206 | E33: 202401201908 | F33: 86.4 | G33: 综合管理-11 | H33: 75.06 | I33: 80.73
A34: 32 | B34: 章周 | C34: 男 | D34: 综合管理岗-231206 | E34: 202401201525 | F34: 85.4 | G34: 综合管理-12 | H34: 77.14 | I34: 81.27
A35: 33 | B35: 郭颖 | C35: 女 | D35: 综合管理岗-231206 | E35: 202401200428 | F35: 78.3 | G35: 综合管理-13 | H35: 74.20 | I35: 76.25
A36: 34 | B36: 殷伟 | C36: 女 | D36: 综合管理岗-231206 | E36: 202401201404 | F36: 80.4 | G36: 综合管理-14 | H36: 74.36 | I36: 77.38
A37: 35 | B37: 江传奇 | C37: 男 | D37: 综合管理岗-231206 | E37: 202401201430 | F37: 79.2 | G37: 综合管理-15 | H37: 73.11 | I37: 76.16
A38: 36 | B38: 刘新晨 | C38: 男 | D38: 综合管理岗-231206 | E38: 202401200419 | F38: 82 | G38: 综合管理-16 | H38: 75.91 | I38: 78.96
A39: 37 | B39: 范容容 | C39: 女 | D39: 综合管理岗-231206 | E39: 202401201816 | F39: 81.4 | G39: 综合管理-17 | H39: 78.36 | I39: 79.88
A40: 38 | B40: 王窦敏 | C40: 女 | D40: 综合管理岗-231206 | E40: 202401200605 | F40: 81.7 | G40: 综合管理-18 | H40: 76.59 | I40: 79.15
A41: 39 | B41: 姜惠妹 | C41: 女 | D41: 综合管理岗-231206 | E41: 202401200816 | F41: 81.6 | G41: 综合管理-19 | H41: 77.88 | I41: 79.74
A42: 40 | B42: 杜磊磊 | C42: 男 | D42: 综合管理岗-231206 | E42: 202401201012 | F42: 81.3 | G42: 综合管理-20 | H42: 73.79 | I42: 77.55
A43: 41 | B43: 谢梅 | C43: 女 | D43: 综合管理岗-231206 | E43: 202401200612 | F43: 79.3 | G43: 综合管理-21 | H43: 73.30 | I43: 76.30
A44: 42 | B44: 朱慧敏 | C44: 女 | D44: 综合管理岗-231206 | E44: 202401201321 | F44: 78.7 | G44: 综合管理-22 | H44: 72.47 | I44: 75.59
A45: 43 | B45: 黄建华 | C45: 男 | D45: 综合管理岗-231206 | E45: 202401200418 | F45: 78.6 | G45: / | H45: / | I45: / | J45: 缺考
A46: 44 | B46: 胡国洋 | C46: 男 | D46: 综合管理岗-231206 | E46: 202401201713 | F46: 77.8 | G46: / | H46: / | I46: / | J46: 缺考
